Workbook

Sheet Summary
I2: Don’t forget to enable Macros
B4: SU8 Processing - Cmi
C7: Substrate : | E7: Si
C9: Resist : | E9: Gersteltec GM 1000
C11: Target thickness : | E11: 100
B17: 1. Wafer Preparation | E17: 2. Coating | H17: 3. Pre-bake | K17: 4. Exposure | N17: 5. PEB
B19: Tepla (Z2) | E19: VM 652 (Z6) | H19: Sawatec Hotplates (Z1 or Z13) | K19: MLA 150 (Z16) | N19: Sawatec Hotplates (Z1 or Z13)
B21: High Power | C21: 7 min | E21: GM 1075 | H21: time [s] | I21: temp [°C] | K21: Please find the dose in the resist | N21: time [s] | O21: temp [°C]
B22: NO Cr,Cu,Ag,Fe | E22: time [s] | F22: temp [°C] | H22: Vacuum = OFF | I22: N2 = ON | K22: table (web or desktop MLA) | N22: Vacuum OFF | O22: N2 ON
E23: 5 | F23: 500 | H23: 1800-3600 | I23: 30 | K23: Mask-aligner i-line (Z1 or Z13) | N23: 10 | O23: 30
E24: 5 | F24: 500 | H24: 3600 | I24: 130 | N24: 3000 | O24: 90
E25: =(Setup!F3-500)/100 -> 14 | F25: =Setup!F3 -> 1900 | H25: 300 | I25: 130 | K25: =Setup!G3 -> 177 | L25: [mJ/cm2] | N25: 3600 | O25: 90
E26: 40 | F26: =Setup!F3 -> 1900 | H26: 3000 | I26: 30 | N26: 2700 | O26: 60
E27: 1 | F27: =(Setup!F3)+1000 -> 2900 | N27: 2700 | O27: 30
E28: 1 | F28: =Setup!F3 -> 1900
E29: 5 | F29: =Setup!F3 -> 1900 | H29: If a segment exceeds 3000s | N29: If a segment exceeds 3000s
E30: =Setup!F3/100 -> 19 | F30: 0 | H30: Please divide in two segments | N30: Please divide in two segments
E31: 0 | F31: 0
B37: 6. Relaxation | E37: 7. Development | H37: 8. Hardbake (optional)
B39: Wafer Storage Box | E39: Plade Solvent (Z1) Wet Bench Solvent (Z13) | H39: Hotplates Süss(Z1) or VWR(Z13)
B41: 60 minutes | E41: time [s] | F41: Solvent | H41: 120 min | I41: 135°C
E42: 180 | F42: PGMEA
E43: 120 | F43: PGMEA
E44: 60 | F44: IPA

Sheet Setup (hidden)
A1: Substrate | B1: Resist | D1: Resist Selected (Sheet name) | F1: Speed | G1: Exp. Dose [mJ/cm2] | H1: Softbake [s] | I1: PEB [s] | J1: Dev [s]
A2: Si | B2: Kayaku 3000 | D2: GM 1075 | F2: =(INDIRECT("'"&Setup!$D$2&"'!$C$13")) -> 1902.068894 | G2: =(INDIRECT("'"&Setup!$D$2&"'!$D$13")) -> 177.0585938 | H2: =(INDIRECT("'"&Setup!$D$2&"'!$E$13")) -> 0 | I2: =(INDIRECT("'"&Setup!$D$2&"'!$F$13")) -> 0 | J2: =(INDIRECT("'"&Setup!$D$2&"'!$F$13")) -> 0
A3: Mettalic layer | B3: Gersteltec GM 1000 | F3: =ROUNDDOWN(F2,-1) -> 1900 | G3: =ROUNDDOWN(G2,0) -> 177 | H3: =ROUNDDOWN(H2,1) -> 0 | I3: =ROUNDDOWN(I2,2) -> 0 | J3: =ROUNDDOWN(J2,2) -> 0
A4: Pyrex or Float glass
A5: Other
B9: Info :
B10: update by M.Pillon, 01.11.2022

Sheet Gersteltec GM Runcard
E1: Back to Gersteltec GM Summary
A3: Step N° | B3: Description | C3: Equipment | D3: Program / Parameters | E3: Remarks
A4: X | B4: PHOTOLITHOGRAPHY
A5: =CONCATENATE(LEFT(A4,3),".1") -> X.1 | B5: Wafer preparation | C5: * See below | D5: * | E5: *
A6: =CONCATENATE(LEFT(A4,3),".2") -> X.2 | B6: Coating | C6: Z1 / Sawatec LSM200 Z13 / Sawatec LSM250 | D6: Segment 1: Time: 5s / Speed: 500rpm Segment 2: Time: 5s / Speed: 500rpm Segment 3: Time: ((X-500)/100)s / Speed: Xrpm Segment 4: Time: 40s / Speed: Xrpm Segment 5: Time: 1s / Speed: X+1000rpm Segment 6: Time: 1s / Speed: Xrpm Segment 7: Time: 5s / Speed: Xrpm Segment 8: Time: (X/100)s / Speed: 0rpm Segment 9 -> 24: Time: 0s / Speed: 0rpm | E6: X is the spinning speed to achieve the desired thickness. Use the "Gersteltec GM Summary" sheet to determine X.
A7: =CONCATENATE(LEFT(A4,3),".3") -> X.3 | B7: Relaxation time for better uniformity | D7: 1040: 1 min. 1050: 2-5 min. 1060: 5-20 min. 1070: 20-45 min. 1075: 30-60 min. | E7: Load on hotplate as coating is finished. Place a cleanroom paper under the wafers. Choose relaxation time based on thickness. Make sure hotplate is at 30°C standby.
A8: =CONCATENATE(LEFT(A4,3),".4") -> X.4 | B8: Softbake (SB) | C8: Z1 / Sawatec HP401Z Z13 / Sawatec HP200 | D8: Segment 1: Time: 10 s / Temp.: 30°C Base Temp.: 30°C / Vaccum : ON / N2: ON Segment 2: Time: X s / Temp.: 130°C End segment: OFF / Vaccum : OFF / N2: ON Segment 3: Time: Y s / Temp.: 130°C End segment: OFF / Vaccum : OFF / N2: ON Segment 4: Time: X s / Temp.: 30°C End segment: ON / Vaccum : OFF / N2: ON Segment 5 -> 24: NO INFLUENCE | E8: X is the ramp from 30°C to 130°C in seconds. Ramp time depends on material type: 1040: 1200 s 1050: 1500 s 1060: 1800 s 1070: 3000 s 1075: 3000 s Y is the baking step time. For a thickness more than 150 µm use 600 s, otherwise use 300 s.
A9: =CONCATENATE(LEFT(A4,3),".5") -> X.5 | B9: Exposure | C9: Z1 / MA6 Gen3 Z6 / MA6 Z13 / MJB4 | D9: Process: Mask-Aligner Exp. Time: X s with 20.0 mW/cm2 (i-line/broadband) Expose Type: Soft; Hard (HC Wait T.: 10 s); or Flood-E Alignment Gap: 30um | E9: X is the time needed to get the desired exposure dose. Use the "Gersteltec GM Summary" sheet to determine X. If X is > 20 s, split exposure with 10 s pause is recommended between each exposure step. Values are only an indication of the typical exposure dose and may be different for each process.
C10: Z5 / VPG200 | D10: Process: Laser Writing Intensity (20mm Head): Z % Focus: 0 (or negative) Exposure Count : Y Total Laser Intensity: Z x Y = X % | E10: X is the total laser intensity (single pass x exposure count) needed to get the desired exposure dose. Use the "Gersteltec GM Summary" sheet to determine X. Values are only an indication of the typical exposure dose and may be different for each process.
A11: =CONCATENATE(LEFT(A4,3),".6") -> X.6 | B11: Post-exposure bake (PEB) | C11: Z1 / Sawatec HP401Z Z13 / Sawatec HP200 | D11: Segment 1: Time: 10 s / Temp.: 30°C Base Temp.: 30°C / Vaccum : ON Segment 2: Time: X s / Temp.: Z °C End segment: OFF / Vaccum : OFF Segment 3: Time: Y s / Temp.: Z °C End segment: OFF / Vaccum : OFF Segment 4: Time: 2700 s / Temp.: 60 °C End segment: OFF / Vaccum : OFF Segment 5: Time: 2700 s / Temp.: 30°C End segment: ON / Vaccum : OFF Segment 6 -> 24: NO INFLUENCE | E11: X is the the ramp up duration, and Y is the bake time, depending on material type. [Type: X, Y] 1040: 1200 s, 900 s 1050: 1200 s, 1200 s 1060: 1800 s, 1800 s 1070: 2400 s, 2400 s 1075: 3000 s, 2x1800 s [*] Z is the bake temperature: 90C for Si, 85C for float glass. Place a single sheet of cleanroom paper under the substrates. [*]: the bake target is 3600 s. The maximum step duration is 3276 sec, therefore two segments must be set up with 1800 s each.
C12: Z1 / Accuplate Z1 / Dataplate | D12: Segment 1: Ramp time: X min Temp.: Z °C; Step time: Y min Segment 2: Ramp ime: 90 min Temp.: 30°C; Step time: 0 min Segment 3 -> 5: NO INFLUENCE | E12: X is the time for the ramp up, Y is the bake time, depending on material type. [Type: X, Y] 1040: 20 min, 15 min 1050: 20 min, 20 min 1060: 30 min, 30 min 1070: 40 min, 40 min 1075: 50 min, 60 min Z is the bake temperature, 90C for Si, 85C for float glass. Place a single sheet of cleanroom paper under the substrates.
A13: =CONCATENATE(LEFT(A4,3),".7") -> X.7 | B13: Relaxation delay | C13: Wafer storage box | D13: From one hour to overnight, depending on thickness
A14: =CONCATENATE(LEFT(A4,3),".8") -> X.8 | B14: Development | C14: Z1 / Plade Wet Bench Z13 / Wet Bench Solvent | D14: PGMEA development in two separate baths | E14: Development time: 1040: 0.5 + 0.5 min 1050 1 + 0.5 min 1060: 1 + 1 min 1070: 2 + 1 min 1075: 3 + 2 min The necessary time might be longer - if a reaction is visible within isopropanol (white residues appear), return to PGMEA for 1 min. Repeat until isopropanol does not react with dissolved SU8 residues.
A15: =CONCATENATE(LEFT(A4,3),".9") -> X.9 | B15: Rinse | C15: Z1 / Plade Wet Bench Z13 / Wet Bench Solvent | D15: Isopropanol | E15: 1 min
A16: =CONCATENATE(LEFT(A4,3),".10") -> X.10 | B16: Inspection | C16: Z1 / uScope Z13 / uScope | D16: Check for residues, resolution and alignment
A20: * Necessary preparation depends on the substrate; see table below.
A22: Si and any other material not listed below
A23: Step N° | B23: Description | C23: Equipment | D23: Program / Parameters | E23: Remarks
A24: =CONCATENATE(LEFT(A4,3),".1") -> X.1 | B24: Wafer preparation | C24: Z2 / Tepla Gigabatch | D24: Prog. PR_strip_high_7min | E24: 7 min
C25: Z11 / Tepla 300 | D25: Prog. 05 | E25: 7 min
A27: Metallic layers (in case the oxydation of the metallic layer may be a problem)
A28: Step N° | B28: Description | C28: Equipment | D28: Program / Parameters | E28: Remarks
A29: =CONCATENATE(LEFT(A4,3),".1") -> X.1 | B29: Wafer preparation | C29: Z1 & Z13 / Hotplate | D29: 20 min / 150°C | E29: Only dehydration No HMDS !!!
A31: Pyrex or Float glass
A32: Step N° | B32: Description | C32: Equipment | D32: Program / Parameters | E32: Remarks
A33: =CONCATENATE(LEFT(A4,3),".1") -> X.1 | B33: Wafer preparation | C33: Z2 / Ultrafab Piranha Z2 / Tepla Gigabatch | D33: Prog. PR_strip_high_7min | E33: Highly recommended 7 min
C34: Z2 / Ultrafab Piranha Z11 / Tepla 300 | D34: Prog. 05 | E34: Highly recommended 7 min

Sheet Kayaku 3000 Runcard
E1: Back to Kayaku Summary
A3: Step N° | B3: Description | C3: Equipment | D3: Program / Parameters | E3: Remarks
A4: X | B4: PHOTOLITHOGRAPHY
A5: =CONCATENATE(LEFT(A4,3),".1") -> X.1 | B5: Wafer preparation | C5: * See below | D5: * | E5: *
A6: =CONCATENATE(LEFT(A4,3),".2") -> X.2 | B6: Coating | C6: Z13 Sawatec LSM250 | D6: Segment 1: Time: 5s / Speed: 500rpm Segment 2: Time: 5s / Speed: 500rpm Segment 3: Time: ((X-500)/100)s / Speed: Xrpm Segment 4: Time: 40s / Speed: Xrpm Segment 5: Time: 1s / Speed: X+1000rpm Segment 6: Time: 1s / Speed: Xrpm Segment 7: Time: 5s / Speed: Xrpm Segment 8: Time: (X/100)s / Speed: 0rpm Segment 9 -> 24: Time: 0s / Speed: 0rpm | E6: X is the spinning speed to achieve the desired thickness. Use the "Kayaku 3000 Summary" sheet to determine X.
A7: =CONCATENATE(LEFT(A4,3),".3") -> X.3 | B7: Relaxation time | C7: Z13 / Hotplate | D7: Not recommended for Kayaku Su8
A8: =CONCATENATE(LEFT(A4,3),".4") -> X.4 | B8: Softbake (SB) | C8: Z13 / Hotplate | D8: Softbake @ 95°C for X minutes | E8: X is the softbake time. Use the "Kayaku 3000 Summary" sheet to determine X.
A9: =CONCATENATE(LEFT(A4,3),".5") -> X.5 | B9: Exposure | C9: Z13 / MJB4 | D9: Process: Photolithography Exp. Time: X s (with 20.0 mW/cm2, mode CP) Mode: Align + Exp Expose Type: Soft; Hard (HC Wait T.: 10s) Alignment Gap: 30um | E9: X is the time needed to get the desired exposure dose. Use the "Kayaku 3000 Summary" sheet to determine X. If X is > 20 s, split exposure with 10 s pause is recommended between each exposure step. Values are only a guide to find starting exposure dose and may be different for each process.
A10: =CONCATENATE(LEFT(A4,3),".6") -> X.6 | B10: Post-exposure bake (PEB) | C10: Z13 / Hotplate | D10: PEB @ 65°C for 1 minutes & 95°C for X minutes | E10: X is the PEB bake time. Use the "Kayaku 3000 Summary" sheet to determine X.
A11: =CONCATENATE(LEFT(A4,3),".7") -> X.7 | B11: Relaxation delay | C11: Wafer storage box | D11: Minimum cooldown / relaxation : 10 minutes
A12: =CONCATENATE(LEFT(A4,3),".8") -> X.8 | B12: Development | C12: Z13 / Wet Bench Solvent | D12: PGMEA development in two separate baths | E12: Development time: Use the "Kayaku 3000 Summary" sheet to determine the development time. The necessary time might be longer - if a reaction is visible within isopropanol (white residues appear), return to PGMEA for 1 min. Repeat until isopropanol does not react with dissolved SU8 residues.
A13: =CONCATENATE(LEFT(A4,3),".9") -> X.9 | B13: Rinse | C13: Z13 / Wet Bench Solvent | D13: Isopropanol | E13: 1 min
A14: =CONCATENATE(LEFT(A4,3),".10") -> X.10 | B14: Inspection | C14: Z13 / uScope | D14: Check for residues, resolution and alignment
A18: * Necessary preparation depends on the substrate; see table below.
A20: Si and any other material not listed below
A21: Step N° | B21: Description | C21: Equipment | D21: Program / Parameters | E21: Remarks
A22: =CONCATENATE(LEFT(A4,3),".1") -> X.1 | B22: Wafer preparation | C22: Z11 / Tepla 300 | D22: Prog. 5 | E22: 7 min
A25: Metallic layers (in case the oxydation of the metallic layer may be a problem)
A26: Step N° | B26: Description | C26: Equipment | D26: Program / Parameters | E26: Remarks
A27: =CONCATENATE(LEFT(A4,3),".1") -> X.1 | B27: Wafer preparation | C27: Z13 / Hotplate | D27: 20 min / 150°C | E27: Only dehydration No HMDS !!!
A30: Pyrex or Float glass
A31: Step N° | B31: Description | C31: Equipment | D31: Program / Parameters | E31: Remarks
A32: =CONCATENATE(LEFT(A4,3),".1") -> X.1 | B32: Wafer preparation | C32: Z2 / Ultrafab Piranha Z11 / Tepla 300 | D32: Prog. 5 | E32: Highly recommended 7 min

Sheet Kayaku 3005 (hidden)
A1: Kayaku 3005
A2: Spin speed [rpm] | B2: Film Thickness [um] | D2: Film Thickness [um] | E2: Typical exposure dose [mJ/cm2] | F2: Softbake Time | G2: PEB Time | H2: Dev time
A3: 1000 | B3: 10 | D3: 10 | E3: 200 | F3: 3 | G3: 2 | H3: 3
A4: 2000 | B4: 7.5 | D4: 4 | E4: 100 | F4: 2 | G4: 1 | H4: 1
A5: 3000 | B5: 6 | D5: linear - a | E5: =(E4-E3)/($D$4-$D$3) -> 16.66666667 | F5: =(F4-F3)/($D$4-$D$3) -> 0.1666666667 | G5: 0.1666666667 | H5: 0.3333333333
A6: 4000 | B6: 5 | D6: linear - b | E6: =E4-E5*$D$4 -> 33.33333333 | F6: =F4-F5*$D$4 -> 1.333333333 | G6: 0.3333333333 | H6: -0.3333333333
A7: 5000 | B7: 4.5 | D7: ax+b
B12: Target thickness [um] | C12: Spin speed [rpm] | D12: Exposure dose [mJ/cm2] | E12: Softbake time [s] | F12: PEB time [s] | G12: Dev time [s]
A13: Zone 13 | B13: =Summary!E11 -> 100 | C13: =(B13/332.56)^(-1/0.504) -> 10.85066541 | D13: =E5*$B$13+E6 -> 1700 | E13: =(F5*$B$13+F6)*60 -> 1080 | F13: =(G5*$B$13+G6)*60 -> 1020 | G13: =(H5*$B$13+H6)*60 -> 1980

Sheet Kayaku 3010 (hidden)
A1: Kayaku 3010
A2: Spin speed [rpm] | B2: Film Thickness [um] | D2: Film Thickness [um] | E2: Typical exposure dose [mJ/cm2] | F2: Softbake Time | G2: PEB Time | H2: Dev time
A3: 1000 | B3: 18.5 | D3: 15 | E3: 200 | F3: 10 | G3: 4 | H3: 6
A4: 2000 | B4: 13 | D4: 8 | E4: 125 | F4: 5 | G4: 2 | H4: 4
A5: 3000 | B5: 10.7 | D5: linear - a | E5: =(E4-E3)/($D$4-$D$3) -> 10.71428571 | F5: =(F4-F3)/($D$4-$D$3) -> 0.7142857143 | G5: 0.2857142857 | H5: 0.2857142857
A6: 4000 | B6: 9.5 | D6: linear - b | E6: =E4-E5*$D$4 -> 39.28571429 | F6: =F4-F5*$D$4 -> -0.7142857143 | G6: -0.2857142857 | H6: 1.714285714
A7: 5000 | B7: 8.7 | D7: ax+b
B12: Target thickness [um] | C12: Spin speed [rpm] | D12: Exposure dose [mJ/cm2] | E12: Softbake time [s] | F12: PEB time [s] | G12: Dev time [s]
A13: Zone 13 | B13: =Summary!E11 -> 100 | C13: =(B13/474.21)^(-1/0.471) -> 27.23842365 | D13: =E5*$B$13+E6 -> 1110.714286 | E13: =(F5*$B$13+F6)*60 -> 4242.857143 | F13: =(G5*$B$13+G6)*60 -> 1697.142857 | G13: =(H5*$B$13+H6)*60 -> 1817.142857

Sheet Kayaku 3025 (hidden)
A1: Kayaku 3025
A2: Spin speed [rpm] | B2: Film Thickness [um] - Datasheet | D2: Film Thickness [um] | E2: Typical exposure dose [mJ/cm2] | F2: Softbake Time | G2: PEB Time | H2: Dev time | K2: Update
A3: 1000 | B3: 60.7 | D3: 50 | E3: 250 | F3: 15 | G3: 5 | H3: 8 | K3: 23.09 - spincurve
D4: 20 | E4: 150 | F4: 10 | G4: 3 | H4: 5
A5: 2500 | B5: 24.5 | D5: linear - a | E5: =(E4-E3)/($D$4-$D$3) -> 3.333333333 | F5: =(F4-F3)/($D$4-$D$3) -> 0.1666666667 | G5: 0.06666666667 | H5: 0.1
D6: linear - b | E6: =E4-E5*$D$4 -> 83.33333333 | F6: =F4-F5*$D$4 -> 6.666666667 | G6: 1.666666667 | H6: 3
A7: 4000 | B7: 16.2 | D7: ax+b
B12: Target thickness [um] | C12: Spin speed [rpm] | D12: Exposure dose [mJ/cm2] | E12: Softbake time [s] | F12: PEB time [s] | G12: Dev time [s]
A13: Zone 13 | B13: =Summary!E11 -> 100 | C13: =(B13/45066)^(-1/0.958) -> 589.1112264 | D13: =E5*$B$13+E6 -> 416.6666667 | E13: =(F5*$B$13+F6)*60 -> 1400 | F13: =(G5*$B$13+G6)*60 -> 500 | G13: =(H5*$B$13+H6)*60 -> 780

Sheet Kayaku 3050 (hidden)
A1: Kayaku 3050
A2: Spin speed [rpm] | B2: Film Thickness [um] - Datasheet | D2: Film Thickness [um] | E2: Typical exposure dose [mJ/cm2] | F2: Softbake Time | G2: PEB Time | H2: Dev time | K2: Update
D3: 100 | E3: 250 | F3: 45 | G3: 5 | H3: 15 | K3: 23.09 - spincurve
D4: 40 | E4: 150 | F4: 15 | G4: 3 | H4: 7
A5: 2500 | B5: 43.2 | D5: linear - a | E5: =(E4-E3)/($D$4-$D$3) -> 1.666666667 | F5: =(F4-F3)/($D$4-$D$3) -> 0.5 | G5: 0.03333333333 | H5: 0.1333333333
D6: linear - b | E6: =E4-E5*$D$4 -> 83.33333333 | F6: =F4-F5*$D$4 -> -5 | G6: =G4-G5*$D$4 -> 1.666666667 | H6: 1.666666667
A7: 4000 | B7: 26.2 | D7: ax+b
A8: 5000
B12: Target thickness [um] | C12: Spin speed [rpm] | D12: Exposure dose [mJ/cm2] | E12: Softbake time [s] | F12: PEB time [s] | G12: Dev time [s]
A13: Zone 13 | B13: =Summary!E11 -> 100 | C13: =(B13/178158)^(1/-1.064) -> 1135.711873 | D13: =E5*$B$13+E6 -> 250 | E13: =(F5*$B$13+F6)*60 -> 2700 | F13: =(G5*$B$13+G6)*60 -> 300 | G13: =(H5*$B$13+H6)*60 -> 900

Sheet GM 1040 (hidden)
A1: GM 1040
A2: Spin speed [rpm] | B2: Film Thickness [um] | D2: Film Thickness [um] | E2: Typical exposure dose [mJ/cm2]
A3: 2000 | B3: 1.45 | D3: 0.94 | E3: 29
A4: 4000 | B4: 0.94 | D4: 1.45 | E4: 39
D5: linear - a | E5: =(E4-E3)/(D4-D3) -> 19.60784314
D6: linear - b | E6: =E4-E5*D4 -> 10.56862745
D7: ax+b
B12: Target thickness [um] | C12: Spin speed [rpm] | D12: Exposure dose [mJ/cm2] | E12: Softbake time [min] | F12: PEB time [min] | G12: Dev time [min]
B13: =Summary!E11 -> 100 | C13: =(B13/168.1)^(1/-0.625) -> 2.295664094 | D13: =E5*B13+E6 -> 1971.352941

Sheet GM 1050 (hidden)
A1: GM 1050
A2: Spin speed [rpm] | B2: Film Thickness [um] | D2: Film Thickness [um] | E2: Typical exposure dose [mJ/cm2]
A3: 2000 | B3: 3.72 | D3: 2.3 | E3: 45
A4: 4000 | B4: 2.3 | D4: 3.72 | E4: 55
D5: linear - a | E5: =(E4-E3)/(D4-D3) -> 7.042253521
D6: linear - b | E6: =E4-E5*D4 -> 28.8028169
D7: ax+b
B12: Target thickness [um] | C12: Spin speed [rpm] | D12: Exposure dose [mJ/cm2] | E12: Softbake time [min] | F12: PEB time [min] | G12: Dev time [min]
B13: =Summary!E11 -> 100 | C13: =(B13/725.04)^(1/-0.694) -> 17.36659394 | D13: =E5*B13+E6 -> 733.028169

Sheet GM 1060 (hidden)
A1: GM 1060
A2: Spin speed [rpm] | B2: Film Thickness [um] | D2: Film Thickness [um] | E2: Typical exposure dose [mJ/cm2]
A3: 2000 | B3: 10.8 | D3: 5.75 | E3: =159*0.4*1.15 -> 73.14
A4: 4000 | B4: 5.75 | D4: 10.8 | E4: =195*0.4*1.15 -> 89.7
D5: linear - a | E5: =(E4-E3)/(D4-D3) -> 3.279207921
D6: linear - b | E6: =E4-E5*D4 -> 54.28455446
D7: ax+b
B12: Target thickness [um] | C12: Spin speed [rpm] | D12: Exposure dose [mJ/cm2] | E12: Softbake time [min] | F12: PEB time [min] | G12: Dev time [min]
B13: =Summary!E11 -> 100 | C13: =(B13/10849)^(1/-0.909) -> 173.4413301 | D13: =E5*B13+E6 -> 382.2053465

Sheet GM 1070 (hidden)
A1: GM 1070
A2: Spin speed [rpm] | B2: Film Thickness [um] | D2: Film Thickness [um] | E2: Typical exposure dose [mJ/cm2]
A3: 2000 | B3: 38.5 | D3: 18.4 | E3: =265*0.4*1.15 -> 121.9
A4: 4000 | B4: 18.4 | D4: 38.5 | E4: =354*0.4*1.15 -> 162.84
D5: linear - a | E5: =(E4-E3)/(D4-D3) -> 2.03681592
D6: linear - b | E6: =E4-E5*D4 -> 84.42258706
D7: ax+b
B12: Target thickness [um] | C12: Spin speed [rpm] | D12: Exposure dose [mJ/cm2] | E12: Softbake time [min] | F12: PEB time [min] | G12: Dev time [min]
B13: =Summary!E11 -> 100 | C13: =(B13/126346)^(1/-1.065) -> 817.0795039 | D13: =E5*B13+E6 -> 288.1041791

Sheet GM 1075 (hidden)
A1: GM 1075
A2: Spin speed [rpm] | B2: Film Thickness [um] | D2: Film Thickness [um] | E2: Typical exposure dose [mJ/cm2]
A3: 2000 | B3: 94.2 | D3: 43 | E3: 147
A4: 4000 | B4: 43 | D4: 94.2 | E4: 174
D5: linear - a | E5: =(E4-E3)/(D4-D3) -> 0.52734375
D6: linear - b | E6: =E4-E5*D4 -> 124.3242188
D7: ax+b
B12: Target thickness [um] | C12: Spin speed [rpm] | D12: Exposure dose [mJ/cm2] | E12: Softbake time [min] | F12: PEB time [min] | G12: Dev time [min]
B13: =Summary!E11 -> 100 | C13: =(B13/511452)^(1/-1.131) -> 1902.068894 | D13: =E5*B13+E6 -> 177.0585938
